bitfinex/quotes_ETHUSD_20240902
["timestamp","ask_amount","ask_price","bid_price","bid_amount"]
[1725248594386,4.08332,2449.0,2448.6,0.55]
[1725248594698,4.54267187,2449.1,2448.6,0.55]
[1725248595198,0.45953187,2449.1,2448.7,4.08376]
[1725248595371,4.08272,2449.4,2448.8,0.55]
[1725248595372,8.16549,2449.4,2448.8,0.55]
[1725248595571,3.0,2449.3,2448.8,4.63362]
[1725248595898,3.0,2449.3,2448.9,4.08343]
[1725248596254,3.708272,2449.3,2448.9,4.08343]
[1725248596455,7.791072,2449.3,2448.8,0.55]
[1725248597106,3.708272,2449.3,2448.8,4.63354]
[1725248599291,3.708272,2449.3,2448.9,4.08346]
[1725248601175,3.708272,2449.3,2448.8,4.63363]
[1725248602174,4.8621492,2449.2,2448.8,0.55]
[1725248602479,4.59532867,2449.2,2448.4,4.08429]
[1725248602822,4.08339,2449.0,2448.5,4.08404]
[1725248603709,4.08339,2449.0,2448.6,4.08395]
[1725248604284,4.98378008,2449.0,2448.6,4.08395]
[1725248605420,0.83744079,2449.1,2448.6,4.08395]
[1725248609210,4.0834,2449.0,2448.4,4.08419]
[1725248609432,4.59565867,2449.0,2448.5,0.55]
[1725248609735,0.49208408,2448.9,2448.5,0.55]
[1725248610842,0.49208408,2448.9,2448.4,0.55]
[1725248612023,0.49208408,2448.9,2448.4,3.40898]
[1725248613368,1.69371094,2449.1,2448.5,3.32900343]
[1725248613369,0.85627015,2449.1,2448.5,3.32900343]
[1725248613569,3.85627015,2449.3,2448.7,2.85858]
[1725248613734,7.15754872,2449.3,2448.7,2.85858]
[1725248613918,7.15754872,2449.3,2448.8,0.55]
[1725248614634,8.01381887,2449.3,2448.8,0.55]
[1725248617143,4.29957872,2449.3,2448.8,3.40854]
[1725248617316,0.42689085,2449.5,2448.9,2.85836]
[1725248617523,0.85627015,2449.6,2449.1,2.85811]
[1725248617823,0.85627015,2449.6,2449.2,0.55]
[1725248618031,0.49982154,2449.5,2449.2,0.55]
[1725248618338,0.85627015,2449.6,2449.2,0.55]
[1725248618665,2.85754,2449.7,2449.2,0.55]
[1725248618666,3.71381015,2449.7,2449.2,0.55]
[1725248619738,2.85754,2449.7,2449.2,3.40806]
[1725248620282,3.71381015,2449.7,2449.2,3.40806]
[1725248621183,2.85754,2449.7,2449.2,3.40806]
[1725248622257,0.85627015,2449.8,2449.2,3.40806]
[1725248622479,3.85627015,2449.8,2449.2,3.40806]
[1725248622787,3.85627015,2449.8,2449.2,3.48970976]
[1725248622995,3.85627015,2449.8,2449.2,3.40806]
[1725248623780,0.85627015,2449.7,2449.2,0.55]
[1725248623988,1.36856808,2449.7,2449.2,0.55]
[1725248624147,4.22612808,2449.7,2449.2,0.55]
[1725248628126,0.85627015,2449.7,2449.2,0.55]
[1725248628423,0.85627015,2449.7,2449.2,1.135431]
[1725248628940,0.85627015,2449.7,2449.2,3.993481]
[1725248630826,0.85627015,2449.7,2449.2,7.32248443]
[1725248631272,0.85627015,2449.7,2449.2,7.40413384]
[1725248632013,2.85775,2449.5,2449.2,0.55]
[1725248632229,2.85775,2449.5,2449.0,2.4462]
[1725248632230,0.85627015,2449.4,2449.1,0.55]
[1725248632373,3.71402015,2449.5,2449.1,0.55]
[1725248632573,2.85775,2449.5,2449.1,0.55]
[1725248633221,4.49961669,2449.5,2449.1,0.55]
[1725248635229,3.71402015,2449.5,2449.1,0.55]
[1725248636181,0.85627015,2449.4,2449.1,0.55]
[1725248637083,3.71402015,2449.5,2449.1,0.55]
[1725248637512,0.85627015,2449.4,2449.1,0.55]
[1725248637724,4.38521478,2449.4,2449.1,0.55]
[1725248637898,3.71432015,2449.3,2448.7,2.4888]
[1725248638223,0.85627015,2449.1,2448.7,2.4888]
[1725248638429,0.85627015,2449.0,2448.7,2.4888]
[1725248638628,0.85627015,2449.0,2448.4,10.75900343]
[1725248638629,3.71468015,2449.0,2448.4,10.75900343]
[1725248638829,1.12703589,2449.0,2448.4,13.12680343]
[1725248639310,0.85627015,2448.9,2448.4,13.12680343]
[1725248640108,2.8585,2448.9,2448.4,13.12680343]
[1725248640304,1.12703589,2449.0,2448.4,15.98579343]
[1725248640507,3.71458015,2449.0,2448.4,20.00072899]
[1725248640722,3.71458015,2449.0,2448.5,0.55]
[1725248641796,2.85844,2448.9,2448.5,0.55]
[1725248642918,0.85627015,2449.0,2448.6,3.32900343]
[1725248643128,0.85627015,2449.0,2448.5,3.40887]
[1725248643129,3.71459015,2449.0,2448.7,0.55]
[1725248643420,0.85627015,2448.9,2448.5,0.55]
[1725248643940,0.85627015,2449.0,2448.5,3.44058334]
[1725248644487,0.85627015,2449.0,2448.4,11.98236649]
[1725248644798,0.85627015,2449.0,2448.5,2.03413865]
[1725248645723,2.85843,2448.9,2448.5,2.03413865]
[1725248646421,3.71470015,2448.9,2448.5,2.03413865]
[1725248647326,0.85627015,2449.0,2448.5,2.03413865]
[1725248647483,6.57283015,2449.1,2448.5,2.03413865]
[1725248647822,0.85627015,2449.0,2448.5,2.03413865]
[1725248647999,3.71458015,2449.0,2448.5,2.03413865]
[1725248648193,0.85627015,2448.9,2448.5,2.03413865]
[1725248648429,0.85627015,2448.9,2448.5,0.55]
[1725248648728,2.85831,2449.0,2448.5,0.55]
[1725248649327,0.85627015,2449.1,2448.6,6.18768343]
[1725248649484,0.85627015,2449.3,2449.1,2.4298]
[1725248649703,5.00069076,2449.7,2449.2,0.55]
[1725248649704,0.85627015,2449.6,2449.2,0.55]
[1725248649923,0.85627015,2449.8,2449.4,2.4298]
[1725248650236,0.85627015,2450.2,2449.8,2.3596]
[1725248650438,0.85627015,2450.5,2450.0,2.3596]
[1725248650734,4.14088522,2450.6,2450.4,2.3596]
[1725248650735,0.85627015,2450.6,2450.4,2.3596]
[1725248650885,4.14064522,2450.8,2450.4,2.3596]
[1725248650886,0.85627015,2450.8,2450.4,2.3596]
[1725248651091,0.85627015,2451.0,2450.4,5.21619]
[1725248651288,0.79959269,2451.0,2450.7,3.32900343]
[1725248652300,3.65558269,2451.0,2450.5,3.32900343]
[1725248652523,3.80941991,2450.9,2450.5,3.32900343]
[1725248652736,2.85621,2450.8,2450.5,3.32900343]
[1725248653235,0.95323991,2450.9,2450.5,3.32900343]
[1725248653236,0.45117928,2450.9,2450.5,3.32900343]
[1725248654989,3.30726928,2450.9,2450.5,3.32900343]
[1725248655196,0.83277756,2450.8,2450.0,2.3596]
[1725248655439,2.85682,2450.3,2450.0,2.3596]
[1725248655730,2.85677,2450.4,2450.0,2.3596]
[1725248655940,3.142447,2450.4,2450.1,3.32900343]
[1725248656088,0.285677,2450.4,2450.1,3.32900343]
[1725248657196,2.85646,2450.6,2450.1,3.32900343]
[1725248659914,5.71301,2450.6,2450.1,3.32900343]
[1725248660125,2.85646,2450.6,2450.1,3.32900343]
[1725248662892,3.18696693,2450.8,2450.2,0.0816227]
[1725248663094,3.0,2450.7,2450.2,0.55]
[1725248663726,6.47509669,2450.7,2450.2,0.55]
[1725248663937,3.61869669,2450.7,2450.2,0.55]
[1725248664499,3.61869669,2450.7,2450.2,3.4069]
[1725248664919,6.47504669,2450.7,2450.2,0.55]
[1725248665120,2.8566,2450.5,2450.2,0.55]
[1725248665321,3.82275136,2450.6,2450.1,3.32900343]
[1725248665322,2.85678,2450.4,2450.1,3.32900343]
[1725248665576,3.82267136,2450.6,2450.0,2.3596]
[1725248665877,2.85647,2450.6,2450.1,3.32900343]
[1725248667565,5.713,2450.6,2450.1,3.32900343]
[1725248667949,2.85659,2450.5,2450.1,3.32900343]
[1725248668716,3.727896,2450.5,2450.1,3.32900343]
[1725248669148,0.42663079,2450.4,2450.1,3.32900343]
[1725248672368,3.28333079,2450.4,2450.1,3.32900343]
[1725248673420,0.42663079,2450.4,2450.1,3.32900343]
[1725248676973,0.42663079,2450.4,2450.2,0.55]
[1725248677989,3.28330079,2450.4,2450.2,0.55]
[1725248678403,2.85679,2450.3,2450.2,0.55]
[1725248678610,2.85679,2450.3,2450.1,0.55]
[1725248679109,3.28330079,2450.4,2450.1,0.55]
[1725248680271,2.85683,2450.3,2450.1,0.55]
[1725248680609,3.28330079,2450.4,2450.1,0.55]
[1725248680822,6.14008079,2450.4,2450.1,0.55]
[1725248682303,3.28330079,2450.4,2450.1,0.55]
[1725248682703,6.14005079,2450.4,2450.1,0.55]
[1725248682915,3.28330079,2450.4,2450.1,0.55]
[1725248683827,2.8568,2450.3,2450.1,0.55]
[1725248684026,3.28330079,2450.4,2450.1,0.55]
[1725248684724,0.42663079,2450.4,2450.2,2.34772129]
[1725248684934,0.42663079,2450.4,2450.3,1.01374666]
[1725248685137,0.42663079,2450.4,2450.3,3.27985928]
[1725248685286,2.85556,2451.4,2450.5,2.2661]
[1725248685491,2.85556,2451.4,2450.4,2.8566]
[1725248685492,2.85529,2451.6,2450.7,5.12242]
[1725248685787,2.85486,2452.0,2451.4,2.2896]
[1725248686030,0.42656561,2451.7,2451.5,0.55]
[1725248686241,0.42656561,2451.7,2451.6,2.2896]
[1725248686498,0.42656561,2451.7,2451.6,5.61860343]
[1725248687311,0.42656561,2451.7,2451.0,0.38146304]
[1725248687312,0.92862624,2451.7,2450.9,2.4079]
[1725248687503,2.85571,2451.3,2450.9,2.4079]
[1725248687999,3.28178561,2451.7,2451.0,0.55]
[1725248688196,3.18345856,2451.6,2451.1,3.32900343]
[1725248688630,0.32817856,2451.6,2449.9,2.85725]
[1725248688855,2.85596,2451.1,2450.4,5.18975]
[1725248689056,0.285596,2451.0,2450.4,5.18975]
[1725248689339,2.85596,2451.1,2450.4,5.18975]
[1725248689740,2.85596,2451.1,2450.4,8.51875343]
[1725248690036,2.8557,2451.3,2450.6,3.32900343]
[1725248690242,2.85575,2451.2,2450.7,0.55]
[1725248691781,2.8557,2451.3,2450.7,0.63160192]
[1725248692135,2.8557,2451.3,2450.7,0.55]
[1725248692337,2.85589,2451.1,2450.7,0.55]
[1725248693450,2.85598,2451.0,2450.5,0.55]
[1725248694139,2.85589,2451.1,2450.5,0.55]
[1725248694334,2.85589,2451.1,2450.5,1.45688634]
[1725248694854,2.85599,2451.0,2450.5,1.45688634]
[1725248695092,2.85589,2451.1,2450.5,1.45688634]
[1725248695257,2.85589,2451.1,2450.6,3.32900343]
[1725248695458,2.85589,2451.1,2450.7,0.55]
[1725248695764,3.71191015,2451.3,2450.7,1.02858898]
[1725248696014,2.85564,2451.3,2450.7,1.02858898]
[1725248696503,2.85574,2451.2,2450.7,1.02858898]
[1725248696792,2.85574,2451.2,2450.7,0.55]
[1725248699581,2.85587,2451.1,2450.7,0.55]
[1725248700058,3.71191015,2451.3,2450.7,0.55]
[1725248700597,2.85564,2451.3,2450.7,0.55]
[1725248700756,2.85564,2451.3,2450.7,1.59987498]
[1725248701096,2.85588,2451.1,2450.7,0.55]
[1725248702547,0.42656743,2451.2,2450.7,0.55]
[1725248702685,3.28232743,2451.2,2450.7,0.55]
[1725248704640,0.42656743,2451.2,2450.7,0.55]
[1725248704783,0.42656743,2451.2,2450.8,2.2831]
[1725248704983,0.42656743,2451.2,2450.4,2.2831]
[1725248704984,0.50206063,2451.1,2450.4,2.2831]
[1725248705219,2.8563,2450.8,2450.4,2.2831]
[1725248708539,2.8561,2450.9,2450.5,0.55]
[1725248708832,2.85599,2451.0,2450.5,0.55]
[1725248710113,2.85586,2451.1,2450.5,0.55]
[1725248710313,2.85586,2451.1,2450.5,2.11889094]
[1725248712841,2.85586,2451.1,2450.6,0.08160402]
[1725248713037,2.85586,2451.1,2450.5,2.11889094]
[1725248713244,2.85609,2450.9,2450.5,0.55]
[1725248715561,2.85586,2451.1,2450.4,2.2831]
[1725248715562,2.85632,2450.7,2450.4,2.2831]
[1725248715853,3.142152,2450.6,2450.4,2.2831]
[1725248716025,2.85632,2450.7,2450.4,2.2831]
[1725248716655,3.71239015,2450.9,2450.4,2.2831]
[1725248716871,0.85627015,2451.0,2450.4,2.2831]
[1725248717011,3.85627015,2451.0,2450.5,0.55]
[1725248717356,3.0,2451.0,2450.5,0.55]
[1725248717536,3.71218015,2451.1,2450.5,0.55]
[1725248717745,4.71134453,2451.1,2450.5,0.55]
[1725248718550,2.85609,2450.9,2450.5,0.55]
[1725248719640,2.85641,2450.7,2450.4,2.2831]
[1725248719928,2.85612,2450.9,2450.4,2.2831]
[1725248720553,0.85627015,2451.0,2450.1,2.4156]
[1725248720712,0.50206063,2450.8,2450.1,2.4156]
[1725248720915,2.85639,2450.7,2450.1,2.4156]
[1725248721539,2.85651,2450.6,2450.1,2.4156]
[1725248722734,3.71241015,2450.9,2450.2,2.85687]
[1725248722951,3.71255015,2450.8,2450.3,1.077247]
[1725248723113,3.71255015,2450.8,2450.3,0.55]
[1725248723552,2.85633,2450.7,2450.3,0.55]
[1725248723750,2.85633,2450.7,2450.2,0.55]
[1725248724316,0.85627015,2450.8,2450.2,0.55]
[1725248724317,2.85646,2450.6,2450.2,0.55]
[1725248724630,2.85675,2450.4,2450.1,2.4156]
[1725248724841,5.71352,2450.4,2450.1,2.4156]
[1725248725875,2.85675,2450.4,2450.1,2.4156]
[1725248726251,2.85649,2450.6,2450.1,2.65716]
[1725248726434,3.71276015,2450.6,2450.1,2.65716]
[1725248727085,3.71253015,2450.8,2450.2,0.63162141]
[1725248727235,3.71253015,2450.8,2450.3,2.4806]
[1725248727677,2.85645,2450.6,2450.3,2.4806]
[1725248729132,0.85627015,2450.7,2450.3,2.4806]
[1725248729133,1.28269458,2450.7,2450.3,2.4806]
[1725248729329,0.42642443,2450.7,2450.3,2.4806]
[1725248730875,1.28269458,2450.7,2450.3,2.4806]
[1725248731279,0.42642443,2450.7,2450.3,3.40225034]
[1725248733175,0.42642443,2450.7,2450.4,0.08161633]
[1725248733574,0.42642443,2450.7,2450.4,2.93827633]
[1725248733761,0.42642443,2450.7,2450.6,2.85644]
[1725248733962,0.42642443,2450.7,2450.6,4.60476998]
[1725248734281,0.85627015,2451.0,2450.6,4.60476998]
[1725248734431,0.85627015,2451.0,2450.7,0.55]
[1725248734633,0.85627015,2450.9,2450.7,0.55]
[1725248734980,3.71232015,2451.0,2450.5,2.3097]
[1725248735141,0.85627015,2450.9,2450.5,3.20416403]
[1725248736288,0.85627015,2450.9,2450.6,0.61423663]
[1725248738875,0.85627015,2450.8,2450.5,2.3097]
[1725248739443,0.85627015,2450.9,2450.5,5.16622]
[1725248739764,0.85627015,2450.8,2450.6,0.52478307]
[1725248740001,0.85627015,2450.9,2450.5,5.16622]
[1725248740474,0.85627015,2450.8,2450.5,5.16622]
[1725248744639,0.85627015,2450.9,2450.5,5.16622]
[1725248745277,0.85627015,2450.9,2450.5,6.40174245]
[1725248745497,0.85627015,2450.8,2450.5,6.40174245]
[1725248745702,0.85627015,2450.9,2450.5,5.16622]
[1725248745916,0.85627015,2450.9,2450.5,5.16619]
[1725248747013,0.85627015,2450.9,2450.6,0.08160667]
[1725248747176,0.85627015,2450.9,2450.7,2.85632]
[1725248747816,0.85627015,2450.9,2450.6,2.85643]
[1725248748242,0.85627015,2450.8,2450.4,0.38225037]
[1725248748442,0.85627015,2450.7,2450.4,0.38225037]
[1725248748747,0.85627015,2450.7,2450.3,2.85672]
[1725248748748,0.85627015,2450.7,2450.3,3.23896037]
[1725248748892,0.85627015,2450.7,2450.4,0.55]
[1725248752234,0.85627015,2450.7,2450.4,0.93245689]
[1725248753037,0.85627015,2450.7,2450.4,0.55]
[1725248753605,0.85627015,2450.7,2450.4,3.78912785]
[1725248753799,0.85627015,2450.8,2450.4,3.78912785]
[1725248754142,0.85627015,2450.8,2450.4,3.78911496]
[1725248754295,0.85627015,2450.7,2450.4,3.78911496]
[1725248754645,0.85627015,2450.7,2450.5,2.93808315]
[1725248754844,0.85627015,2450.8,2450.5,3.23887361]
[1725248755134,0.85627015,2450.8,2450.5,2.85647]
[1725248755718,0.85627015,2450.8,2450.5,2.93807715]
[1725248755916,0.85627015,2450.8,2450.5,3.76179138]
[1725248756153,0.85627015,2450.9,2450.5,3.76179138]
[1725248756328,0.85627015,2450.8,2450.5,3.76179138]
[1725248757433,0.85627015,2450.8,2450.6,0.38238628]
[1725248757640,0.85627015,2450.8,2450.5,3.76179138]
[1725248757938,0.85627015,2450.8,2450.5,5.14686589]
[1725248758307,1.28440522,2450.9,2450.5,5.14686589]
[1725248758308,0.85627015,2450.9,2450.6,0.38239259]
[1725248758628,0.85627015,2450.8,2450.5,5.14686589]
[1725248758885,0.85627015,2450.9,2450.6,0.38240323]
[1725248759086,0.85627015,2450.9,2450.5,5.06525874]
[1725248759288,0.85627015,2451.0,2450.8,2.85621]
[1725248759452,0.85627015,2451.2,2451.0,2.475]
[1725248760241,0.85627015,2451.1,2450.6,0.55]
[1725248760542,0.85627015,2451.1,2450.5,11.61863306]
[1725248760543,0.85627015,2450.8,2450.5,6.28556306]
[1725248760746,0.85627015,2450.8,2450.3,5.33334]
[1725248760989,0.85627015,2450.7,2450.3,5.41495326]
[1725248761159,0.85627015,2450.7,2450.4,0.3824936]
[1725248761363,0.85627015,2450.7,2450.3,3.93234863]
[1725248761554,0.85627015,2450.7,2450.4,0.38250788]
[1725248761753,0.85627015,2450.7,2450.3,2.4766]
[1725248762512,0.85627015,2450.7,2450.4,0.55]
[1725248763006,3.71266015,2450.7,2450.3,2.4766]
[1725248763360,0.85627015,2450.7,2450.3,2.4766]
[1725248763900,0.85627015,2450.7,2450.3,7.32905213]
[1725248764124,0.85627015,2450.8,2450.4,0.55]
[1725248764408,0.85627015,2450.8,2450.5,3.3232292]
[1725248764712,0.85627015,2450.8,2450.5,4.38864375]
[1725248765378,0.85627015,2450.8,2450.5,1.06541455]
[1725248765556,0.85627015,2450.8,2450.5,4.38864375]
[1725248765755,0.85627015,2450.8,2450.6,3.40641]
[1725248766003,2.14067537,2450.9,2450.6,3.40641]
[1725248766303,0.85627015,2450.9,2450.6,1.61517138]
[1725248766473,0.85627015,2450.9,2450.6,0.55]
[1725248767907,0.85627015,2450.8,2450.6,0.55]
[1725248768267,0.85627015,2450.8,2450.3,5.7998292]
[1725248768463,0.85627015,2450.7,2450.4,0.55]
[1725248769286,0.85627015,2450.7,2450.4,2.09921423]
[1725248770318,0.85627015,2450.7,2450.4,0.55]
[1725248770319,0.85627015,2450.6,2450.4,0.55]
[1725248770619,0.85627015,2450.6,2450.1,5.7290292]
[1725248770620,0.85627015,2450.6,2450.2,0.55]
[1725248770774,0.85627015,2450.6,2450.3,3.3232292]
[1725248771375,0.85627015,2450.5,2450.3,3.3232292]
[1725248771582,1.71252096,2450.8,2450.3,3.3232292]
[1725248771583,0.85627015,2450.6,2450.4,2.93827652]
[1725248771829,0.85627015,2450.6,2450.5,0.55]
[1725248772828,0.85627015,2450.6,2450.2,3.3232292]
[1725248773121,0.85627015,2450.5,2450.3,0.55]
[1725248775224,0.85627015,2450.4,2450.3,0.55]
[1725248776524,0.85627015,2450.4,2449.9,5.7139292]
[1725248776703,0.85846933,2450.4,2450.0,0.55]
[1725248778035,3.71513933,2450.4,2450.0,0.55]
[1725248781143,3.71513933,2450.4,2450.1,1.38555276]
[1725248782409,3.71513933,2450.4,2450.3,1.38555276]
[1725248783018,3.71513933,2450.4,2450.1,1.67962276]
[1725248783214,3.71513933,2450.4,2450.1,1.38555276]
[1725248784707,0.85846933,2450.4,2450.3,1.38555276]
[1725248785062,0.85846933,2450.7,2450.6,2.85644]
[1725248785260,1.71252096,2450.9,2450.7,6.88351676]
[1725248785261,0.85846933,2450.9,2450.7,6.88351676]
[1725248785427,0.85846933,2451.2,2451.1,2.85586]
[1725248785629,2.13895641,2451.5,2451.3,2.356]
[1725248785630,0.85846933,2451.5,2451.3,2.356]
[1725248785817,0.85846933,2451.5,2451.4,4.87264099]
[1725248786015,0.85846933,2451.5,2451.4,10.10945099]
[1725248786318,1.28440522,2451.6,2451.5,5.71078]
[1725248786319,0.85846933,2451.6,2451.5,5.71078]
[1725248786659,1.28440522,2451.8,2451.7,5.71032]
[1725248786815,1.28440522,2451.8,2451.7,10.02717276]
[1725248787048,1.28440522,2451.8,2451.7,11.67857805]
[1725248787240,2.14348306,2452.0,2451.9,10.88566]
[1725248787446,1.46393263,2452.0,2451.9,15.82121276]
[1725248787755,2.85307,2453.5,2452.7,2.85398]
[1725248787925,2.85307,2453.5,2452.8,3.86715879]
[1725248788729,7.7735643,2453.4,2452.8,3.86715879]
[1725248788966,0.50002094,2453.2,2452.8,0.55]
[1725248789259,0.50002094,2453.2,2452.6,0.55]
[1725248789418,0.50002094,2453.2,2452.6,3.86715879]
[1725248789622,4.9203643,2453.4,2452.8,5.68295879]
[1725248789919,4.9203643,2453.4,2452.8,9.16837043]
[1725248790122,4.9203643,2453.4,2452.8,11.94071879]
[1725248790320,4.9203643,2453.4,2452.8,15.98867067]
[1725248790543,4.9203643,2453.4,2452.8,18.98867067]
[1725248790744,4.9203643,2453.4,2453.3,8.07238]
[1725248791043,4.9203643,2453.4,2453.3,8.62238]
[1725248791230,4.9203643,2453.4,2453.3,16.08712579]
[1725248791429,4.9203643,2453.4,2453.3,10.23383579]
[1725248791667,4.9203643,2453.4,2453.3,6.72044879]
[1725248792034,0.50002094,2454.0,2453.3,6.72044879]
[1725248792361,0.50002094,2454.0,2453.4,3.40316]
[1725248792560,3.35254094,2454.0,2453.4,0.55]
[1725248792774,0.62049109,2453.9,2453.4,0.55]
[1725248793443,3.35253094,2454.0,2453.4,0.55]
[1725248794773,2.85251,2454.0,2453.4,0.55]
[1725248794928,2.85262,2453.9,2453.4,0.55]
[1725248796561,2.85243,2454.1,2453.4,0.55]
[1725248796770,0.62047009,2454.0,2453.4,3.40317]
[1725248796975,2.85213,2454.3,2453.6,2.85294]
[1725248797132,3.662853,2454.3,2453.7,0.55]
[1725248797870,4.16287394,2454.3,2453.7,0.55]
[1725248798866,2.85225,2454.2,2453.7,0.55]
[1725248800780,1.31074394,2454.3,2453.7,3.40281]
[1725248801375,0.41628139,2454.2,2453.7,0.55]
[1725248801558,2.85246,2454.1,2453.4,2.8531]
[1725248801736,5.70494,2454.1,2453.5,0.55]
[1725248802076,3.42484809,2454.0,2453.5,0.55]
[1725248802245,2.8526,2453.9,2453.5,0.55]
[1725248802581,0.50002094,2454.2,2453.5,3.31715879]
[1725248802877,2.85218,2454.3,2453.6,0.88171588]
[1725248803177,2.85218,2454.3,2453.6,0.55]
[1725248803360,2.85218,2454.3,2452.8,12.37]
[1725248803361,5.2481,2453.9,2453.1,2.85351]
[1725248803561,5.2481,2453.9,2453.2,2.8534]
[1725248803801,2.8526,2453.9,2453.3,2.93480271]
[1725248804435,2.85242,2454.1,2453.4,2.85315]
[1725248804641,3.824792,2454.0,2453.4,2.85315]
[1725248805179,6.677302,2454.0,2453.4,2.85315]
[1725248805775,3.49411637,2457.5,2453.5,2.40061113]
[1725248805776,2.85216,2454.3,2453.5,2.40061113]
[1725248806079,3.0,2454.2,2453.6,3.40285]
[1725248810485,3.373046,2454.3,2453.7,2.85279]
[1725248810639,3.373046,2454.3,2453.8,0.55]
[1725248810842,3.373046,2454.3,2453.6,6.25571]
[1725248811386,3.373046,2454.3,2453.6,3.40285]
[1725248814202,3.373046,2454.3,2453.7,2.85281]
[1725248814370,3.373046,2454.3,2453.8,0.55]
[1725248816434,0.3373046,2454.2,2453.8,0.55]
[1725248816581,0.3373046,2454.2,2453.7,0.55]
[1725248817084,0.3373046,2454.2,2453.7,3.40281]
[1725248817302,3.373046,2454.3,2453.7,3.40281]
[1725248818412,3.373046,2454.3,2453.8,2.8527]
[1725248819587,0.520886,2454.3,2453.8,2.8527]
[1725248820302,3.373036,2454.3,2453.7,0.55]
[1725248820819,0.520886,2454.3,2453.7,0.63150044]
[1725248821140,3.0,2454.4,2453.9,2.85258]
[1725248821379,0.42642782,2454.6,2454.0,3.4839777]
[1725248821506,5.19186,2454.8,2454.0,3.4839777]
[1725248821507,2.3403,2454.8,2454.2,2.85224]
[1725248822038,2.85125,2455.1,2454.4,2.85197]
[1725248822039,5.19155,2455.1,2454.4,2.85197]
[1725248822186,6.37752697,2455.1,2454.4,2.85197]
[1725248822540,6.87754791,2455.1,2454.4,2.85197]
[1725248823145,3.0,2455.0,2454.4,2.85197]
[1725248823349,6.87754791,2455.1,2454.6,2.85178]
[1725248823350,2.84032094,2455.1,2454.6,2.85178]
[1725248823491,2.85101,2455.3,2454.7,0.285178]
[1725248824243,2.85101,2455.3,2454.6,2.85178]
[1725248824585,2.85101,2455.3,2454.5,0.08147974]
[1725248824586,2.85109,2455.2,2454.7,0.55]
[1725248824847,3.35111094,2455.2,2454.7,0.55]
[1725248824994,0.33511109,2455.1,2454.6,0.55]
[1725248825196,0.83513203,2455.1,2454.6,0.55]
[1725248825385,2.3471,2454.9,2454.3,0.38161164]
[1725248825586,0.50002094,2454.8,2454.2,0.38164948]
[1725248825834,3.35158094,2454.8,2454.1,2.85235]
[1725248826049,3.95830725,2454.8,2454.1,2.85235]
[1725248826209,2.85167,2454.7,2454.2,0.38176941]
[1725248826460,3.76737773,2454.7,2454.0,2.85248]
[1725248826656,3.76737773,2454.7,2454.0,3.23424941]
[1725248826978,3.76737773,2454.7,2454.0,2.85248]
[1725248827174,3.76737773,2454.7,2454.0,3.23424941]
[1725248827466,3.76737773,2454.7,2454.0,2.85248]
[1725248827685,2.85167,2454.7,2454.0,4.12348023]
[1725248827880,2.85167,2454.7,2454.1,0.55]
[1725248832001,2.85178,2454.6,2454.1,0.55]
[1725248832389,2.85199,2454.5,2454.1,0.55]
[1725248832595,2.85221,2454.3,2453.7,0.38144264]
[1725248832790,2.85221,2454.3,2453.8,0.55]
[1725248833410,2.4285,2454.4,2453.8,3.40271]
[1725248834276,2.85198,2454.5,2453.8,3.78406264]
[1725248834619,5.17301,2454.7,2453.9,0.87410248]
[1725248834918,5.17301,2454.7,2454.0,9.05191264]
[1725248835073,2.85179,2454.6,2454.0,6.19952264]
[1725248835279,5.17301,2454.7,2454.0,7.48572377]
[1725248835478,8.02478,2454.7,2454.0,7.10428113]
[1725248835675,5.17301,2454.7,2454.0,7.48572377]
[1725248835984,2.85187,2454.6,2454.0,7.10428113]
[1725248836298,2.85191,2454.5,2454.0,2.9657]
[1725248838190,6.520771,2454.7,2454.0,5.81816]
[1725248838425,6.520771,2454.7,2454.0,9.91863086]
[1725248838426,3.669011,2454.7,2454.0,9.91863086]
[1725248838608,3.669011,2454.7,2454.0,7.06617086]
[1725248838806,3.0,2454.8,2454.2,2.85222]
[1725248839040,3.0,2454.8,2454.3,3.48350217]
[1725248839191,2.85104,2455.3,2454.5,2.85188]
[1725248839533,2.85059,2455.7,2454.9,2.85141]
[1725248839534,2.85054,2455.7,2454.9,2.85141]
[1725248839784,2.85009,2456.1,2455.5,2.85071]
[1725248839892,2.99035029,2457.1,2455.5,2.85071]
[1725248839893,2.84988,2456.3,2455.6,5.84275417]
[1725248840091,2.84962,2456.5,2455.8,2.85036]
[1725248840342,2.84962,2456.5,2455.9,0.55]
[1725248840638,5.69882,2456.7,2456.0,0.0814263]
[1725248840841,5.69882,2456.7,2456.1,0.55]
[1725248840842,0.530756,2456.6,2456.1,0.55]
[1725248841039,2.85052,2455.7,2455.2,2.303]
[1725248841249,2.85035,2455.9,2455.3,0.55]
[1725248841537,2.85035,2455.9,2455.3,1.120412]
[1725248841719,2.85051,2455.7,2455.3,0.55]
[1725248841894,2.85051,2455.7,2455.2,0.55]
[1725248842259,2.85051,2455.7,2455.1,0.55]
[1725248842536,2.85064,2455.6,2455.1,0.55]
[1725248842705,2.85074,2455.5,2455.1,0.55]
[1725248842924,3.35053094,2455.7,2454.6,5.3046]
[1725248842925,2.85108,2455.3,2454.6,5.3046]
[1725248843119,2.85108,2455.3,2454.7,0.3]
[1725248843318,3.47088709,2455.5,2454.8,0.0814629]
[1725248843542,5.34627,2455.7,2454.9,2.85142]
[1725248843737,2.85075,2455.5,2455.0,0.08145517]
[1725248843898,2.85088,2455.4,2454.8,0.55377229]
[1725248844545,3.0,2455.6,2454.9,0.55]
[1725248844546,2.85107,2455.3,2454.9,0.55]
[1725248844848,2.85098,2455.3,2454.7,3.40158]
[1725248845041,2.85098,2455.3,2454.8,0.570618]
[1725248845216,2.85098,2455.3,2454.9,0.55]
[1725248846593,2.85098,2455.3,2454.8,0.55]
[1725248847228,2.85078,2455.5,2454.8,3.972078]
[1725248847504,2.85107,2455.3,2454.8,1.120618]
[1725248847823,2.85107,2455.3,2454.8,0.55]
[1725248848022,2.85107,2455.3,2454.6,0.55]